fUSD/lending_fUSD_20240624
["ID","MTS","AMOUNT","RATE_DAILY","PERIOD"]
[330296557,1719239246262,-806.02,0.0001284,2]
[330296558,1719239246283,-250.0,0.00012851,2]
[330296559,1719239246306,-156.32,0.00012889,2]
[330296560,1719239246331,-500.0,0.00012896,2]
[330296561,1719239246357,-156.32,0.00012956,2]
[330296562,1719239246381,-161.25976206,0.00013006,2]
[330296563,1719239246405,-156.32,0.00013023,2]
[330296564,1719239246434,-156.32,0.0001309,2]
[330296565,1719239246457,-1161.25,0.00013129,2]
[330296566,1719239246479,-156.32,0.00013157,2]
[330296567,1719239246501,-156.32,0.00013224,2]
[330296568,1719239246522,-344.82,0.00013248,2]
[330296569,1719239246544,-4704.38,0.00013248,2]
[330296570,1719239246565,-278.95,0.00013248,2]
[330296571,1719239246590,-224.99,0.00013248,2]
[330296572,1719239246611,-1000.0,0.00013257,2]
[330296573,1719239246632,-156.32,0.0001329,2]
[330296574,1719239246653,-161.25976206,0.00013304,2]
[330296575,1719239246675,-327.84,0.00013336,2]
[330296576,1719239246696,-156.32,0.00013357,2]
[330296577,1719239246718,-156.32,0.00013424,2]
[330296578,1719239246739,-156.32,0.00013491,2]
[330296579,1719239246760,-161.25976206,0.00013602,2]
[330296580,1719239246781,-1461.56,0.00013699,2]
[330296581,1719239246803,-10000.0,0.00013699,2]
[330296582,1719239246825,-372.37,0.00013699,2]
[330296583,1719239246851,-53821.0,0.00013721,2]
[330296584,1719239246872,-487.26,0.00013773,2]
[330296585,1719239246893,-9817.37,0.00013869,2]
[330296586,1719239246914,-6954.87585501,0.0001387,2]
[330296587,1719239246935,-137184.1411422,0.00013899,2]
[330296588,1719239246956,-4609.91653978,0.000139,2]
[330296589,1719239246978,-161.25976206,0.000139,2]
[330296590,1719239246998,-1000.0,0.000139,2]
[330296591,1719239247021,-6209.36599522,0.000139,2]
[330296592,1719239247044,-683.62141879,0.000139,2]
[330296593,1719239247301,-1952.10400417,0.000139,2]
[330296594,1719239247322,-2500.0,0.000139,2]
[330296595,1719239247348,-629.66722708,0.000139,2]
[330296596,1719239247368,-181.24765135,0.000139,2]
[330296597,1719239247388,-499.99,0.000139,2]
[330296598,1719239247408,-1437.52003661,0.00013999,5]
[330296599,1719239247435,-213249.79943083,0.00014,2]
[330296600,1719239248134,-54276.67819992,0.00014,2]
[330296601,1719239249125,-3671.50098905,0.00014,2]
[330296602,1719239250164,300.15374837,0.00010576,2]
[330296603,1719239252104,-69326.21258032,0.00014,2]
[330296604,1719239253116,-32162.45898522,0.00014,2]
[330296606,1719239320541,1002.34454554,0.00025,60]
[330296612,1719239432976,-1000.0,0.00013889,2]
[330296615,1719239432988,-2500.0,0.00013889,2]
[330296617,1719239432999,-1182.54474866,0.000139,2]
[330296618,1719239433008,-320.54618689,0.000139,2]
[330296620,1719239433018,-4241.70295032,0.000139,2]
[330296622,1719239433028,-1881.02358263,0.000139,2]
[330296624,1719239433041,-425.23616246,0.000139,2]
[330296626,1719239433050,-1254.3548448,0.000139,2]
[330296628,1719239433059,-151.52157189,0.00013999,2]
[330296629,1719239433069,-1482739.46055141,0.00014,2]
[330296630,1719239433080,-718.42740746,0.00014,2]
[330296631,1719239433092,-2259.47975856,0.00014,2]
[330296632,1719239433103,-600.0,0.00014,2]
[330296667,1719239433731,-0.38132945,0.00014,2]
[330296668,1719239433746,-76766.89418247,0.00014,2]
[330296669,1719239433758,-1324.76351156,0.00014,2]
[330296670,1719239433809,-42228.60460026,0.00014,2]
[330296671,1719239433821,-3079.45,0.00014,2]
[330296672,1719239433904,-571.61940899,0.00014,2]
[330296673,1719239433916,-909.67996557,0.00014,2]
[330296674,1719239433928,-28817.48132769,0.00014,2]
[330296675,1719239433940,-582.92504737,0.00014,2]
[330296676,1719239433963,-116816.94030783,0.00014,2]
[330296699,1719239441065,-230455.16277165,0.00014,2]
[330296702,1719239441078,-1632178.92621994,0.00014,2]
[330296704,1719239441089,-500.0,0.00014,2]
[330296706,1719239441098,-500.0,0.00014,2]
[330296708,1719239441108,-500.0,0.00014,2]
[330296710,1719239441119,-500.0,0.00014,2]
[330296712,1719239441129,-500.0,0.00014,2]
[330296714,1719239441139,-500.0,0.00014,2]
[330296716,1719239441148,-500.0,0.00014,2]
[330296718,1719239441158,-500.0,0.00014,2]
[330296720,1719239441168,-500.0,0.00014,2]
[330296722,1719239441179,-500.0,0.00014,2]
[330296723,1719239441196,-500.0,0.00014,2]
[330296724,1719239441206,-500.0,0.00014,2]
[330296725,1719239441216,-500.0,0.00014,2]
[330296726,1719239441228,-976.0,0.00014,2]
[330296727,1719239441238,-2502.60207,0.00014,2]
[330296728,1719239441251,-173.44,0.00014626,2]
[330296729,1719239441261,-4609.91653972,0.00014717,2]
[330296730,1719239441270,-163.19,0.00014779,2]
[330296731,1719239441280,-167.61,0.00014856,2]
[330296732,1719239441290,-1182.54474866,0.00014899,2]
[330296733,1719239441300,-177.832847,0.00014907,2]
[330296734,1719239441310,-1000.0,0.00014915,2]
[330296735,1719239441320,-1196.07,0.00014969,2]
[330296736,1719239441331,-1500.0,0.00014973,5]
[330296737,1719239441341,-143716.98739976,0.00015,2]
[330296738,1719239441351,-5000.0,0.00015,2]
[330296739,1719239441363,-335.94,0.00015082,2]
[330296740,1719239441373,-806.02,0.00015104,2]
[330296741,1719239441383,-2306.25974502,0.00015184,2]
[330296742,1719239441394,-162.60728108,0.00015534,2]
[330296743,1719239441405,-4609.91653972,0.00015535,2]
[330296744,1719239441415,-1895.36,0.00015548,2]
[330296745,1719239441426,-955.85753929,0.00015766,2]
[330296746,1719239441436,-1182.54474866,0.00015898,2]
[330296747,1719239441446,-209.96997035,0.00016043,2]
[330296748,1719239441457,-1373.7220667,0.00016087,2]
[330296750,1719239441467,-1012.62731708,0.00016088,2]
[330296752,1719239441477,-173.44,0.00016089,2]
[330296754,1719239441487,-4609.91653972,0.00016352,2]
[330296756,1719239441500,-1340.07749841,0.00016429,2]
[330296758,1719239441511,-528.0988798,0.00016436,2]
[330296759,1719239441521,-2306.25974502,0.00016469,2]
[330296761,1719239441532,-2021.92150723,0.00016571,2]
[330296763,1719239441542,-1000.0,0.00016572,2]
[330296765,1719239441553,-242.12454532,0.0001661,2]
[330296767,1719239441562,-639.0,0.000167,3]
[330296769,1719239441573,-477.64697576,0.0001671,2]
[330296771,1719239441584,-10537.00283536,0.00016777,2]
[330296773,1719239441595,-841.94206414,0.00016777,2]
[330296775,1719239441605,-196.20443442,0.00016799,2]
[330296777,1719239441616,-23435.17948787,0.000168,2]
[330296779,1719239441627,-253.90432169,0.000168,2]
[330296781,1719239441637,-155.09506408,0.000168,2]
[330296783,1719239441647,-163.19,0.00016891,2]
[330296785,1719239441657,-164.98878449,0.00016897,2]
[330296787,1719239441667,-1182.54474866,0.00016897,2]
[330296789,1719239441677,-717.00881294,0.00016921,2]
[330296791,1719239441688,-518.04242089,0.00016946,2]
[330296793,1719239441697,-266.37349123,0.00016947,2]
[330296795,1719239441706,-1628.15219561,0.00016957,2]
[330296796,1719239441716,-156.74698677,0.00016966,2]
[330296798,1719239441726,-335.94,0.00016967,2]
[330296800,1719239441736,-155.0,0.00016967,2]
[330296802,1719239441750,-1400.55359634,0.00016968,7]
[330296804,1719239441760,-1400.55359634,0.00016968,7]
[330296806,1719239441770,-3765.0,0.00017,3]
[330296808,1719239441779,-4609.91653972,0.00017169,2]
[330296810,1719239441789,-806.02,0.00017368,2]
[330296812,1719239441800,-173.44,0.00017551,2]
[330296814,1719239441811,-2306.25974502,0.00017753,2]
[330296816,1719239441823,-6209.3659952,0.00017896,2]
[330296818,1719239441833,-1182.54474866,0.00017896,2]
[330296820,1719239441843,-2944.45934616,0.00017986,2]
[330296823,1719239441870,-1665.45719356,0.00017986,2]
[330296825,1719239441881,-852.95,0.00018192,2]
[330296827,1719239441891,-418.46,0.00018192,2]
[330296829,1719239441902,-852.95,0.00018192,2]
[330296831,1719239441913,-418.46,0.00018192,2]
[330296833,1719239441923,-418.46,0.00018192,2]
[330296835,1719239441933,-852.95,0.00018192,2]
[330296837,1719239441943,-696.44344213,0.00018192,2]
[330296839,1719239441956,-156.50655787,0.00018192,2]
[330296841,1719239441967,-418.46,0.00018192,2]
[330296844,1719239441977,-418.46,0.00018192,2]
[330296845,1719239441987,-402.24,0.00018192,2]
[330296847,1719239442000,-1000.0,0.00018229,2]
[330296849,1719239442010,-1895.36,0.00018287,2]
[330296851,1719239442020,-320.54618687,0.00018395,2]
[330296853,1719239442031,-1254.3548448,0.00018395,2]
[330296855,1719239442041,-223.16914781,0.000185,2]
[330296857,1719239442051,-1053.0,0.0001868,2]
[330296859,1719239442062,-4787.81704601,0.00018699,2]
[330296861,1719239442072,-4609.91653972,0.00018804,2]
[330296863,1719239442082,-335.94,0.00018852,2]
[330296865,1719239442091,-423.74,0.00018872,2]
[330296867,1719239442102,-6209.3659952,0.00018894,2]
[330296869,1719239442112,-1182.54474866,0.00018894,2]
[330296871,1719239442122,-153.52,0.000189,2]
[330296873,1719239442132,-153.52,0.000189,2]
[330296875,1719239442143,-153.52,0.000189,2]
[330296877,1719239442153,-153.52,0.000189,2]
[330296879,1719239442163,-153.52,0.000189,2]
[330296881,1719239442174,-153.52,0.000189,2]
[330296883,1719239442186,-153.52,0.000189,2]
[330296885,1719239442210,-153.52,0.000189,2]
[330296887,1719239442222,-153.52,0.000189,2]
[330296889,1719239442234,-153.52,0.000189,2]
[330296891,1719239442246,-153.52,0.000189,2]
[330296893,1719239442256,-153.52,0.000189,2]
[330296895,1719239442266,-153.52,0.000189,2]
[330296897,1719239442279,-153.52,0.000189,2]
[330296899,1719239442291,-153.52,0.000189,2]
[330296901,1719239442300,-153.52,0.000189,2]
[330296903,1719239442310,-153.52,0.000189,2]
[330296905,1719239442320,-153.52,0.000189,2]
[330296907,1719239442330,-153.52,0.000189,2]
[330296909,1719239442340,-153.52,0.000189,2]
[330296911,1719239442349,-153.52,0.000189,2]
[330296913,1719239442359,-153.52,0.000189,2]
[330296915,1719239442369,-153.52,0.000189,2]
[330296917,1719239442379,-153.52,0.000189,2]
[330296919,1719239442389,-153.52,0.000189,2]
[330296921,1719239442399,-153.52,0.000189,2]
[330296923,1719239442409,-153.52,0.000189,2]
[330296925,1719239442419,-153.52,0.000189,2]
[330296927,1719239442429,-153.52,0.000189,2]
[330296929,1719239442439,-153.52,0.000189,2]
[330296931,1719239442448,-153.52,0.000189,2]
[330296933,1719239442457,-153.52,0.000189,2]
[330296934,1719239442467,-153.52,0.000189,2]
[330296935,1719239442476,-153.52,0.000189,2]
[330296936,1719239442486,-153.52,0.000189,2]
[330296937,1719239442500,-153.52,0.000189,2]
[330296939,1719239442509,-153.52,0.000189,2]
[330296941,1719239442519,-153.52,0.000189,2]
[330296943,1719239442528,-153.52,0.000189,2]
[330296945,1719239442537,-153.52,0.000189,2]
[330296947,1719239442547,-153.52,0.000189,2]
[330296949,1719239442556,-153.52,0.000189,2]
[330296951,1719239442565,-153.52,0.000189,2]
[330296953,1719239442574,-153.52,0.000189,2]
[330296955,1719239442584,-153.52,0.000189,2]
[330296957,1719239442593,-519.86065789,0.00018977,2]
[330296959,1719239442603,-430.84491342,0.00018999,2]
[330296961,1719239442612,-2502.60207,0.00019,2]
[330296962,1719239442621,-163.19,0.00019002,2]
[330296964,1719239442631,-153.52,0.0001903,2]
[330296967,1719239442640,-2306.25974502,0.00019037,2]
[330296969,1719239442650,-166.0,0.0001904,2]
[330296971,1719239442659,-812.0,0.0001904,2]
[330296973,1719239442668,-617.0,0.0001904,2]
[330296975,1719239442678,-448.0,0.0001904,2]
[330296976,1719239442687,-443.0,0.0001904,2]
[330296978,1719239442696,-2412.0,0.0001904,2]
[330296980,1719239442706,-1304.0,0.0001904,2]
[330296982,1719239442716,-547.0,0.0001904,2]
[330296983,1719239442726,-1984.0,0.0001904,2]
[330296984,1719239442736,-3201.0,0.0001904,2]
[330296985,1719239442747,-1068.0,0.0001904,2]
[330296986,1719239442756,-4166.65,0.0001904,2]
[330296987,1719239442766,-359.0,0.0001904,2]
[330296988,1719239442775,-291.0,0.0001904,2]
[330296989,1719239442785,-5168.0,0.0001904,2]
[330296990,1719239442794,-1272.0,0.0001904,2]
[330296991,1719239442803,-1655.0,0.0001904,2]
[330296992,1719239442813,-10806.682,0.0001904,2]
[330296993,1719239442822,-1830.0,0.0001904,2]
[330296994,1719239442831,-2883.6533784,0.00019097,2]
[330296995,1719239442842,-1000.0,0.00019098,2]
[330296996,1719239442851,-258.61409544,0.0001915,2]
[330296998,1719239442861,-153.52,0.00019168,2]
[330296999,1719239442870,-153.52,0.00019168,2]
[330297001,1719239442879,-500.0,0.00019178,2]
[330297004,1719239442889,-500.0,0.00019178,2]
[330297005,1719239442898,-348.53573506,0.00019178,2]
[330297007,1719239442908,-500.0,0.00019178,2]
[330297009,1719239442918,-152.93955779,0.00019178,2]
[330297011,1719239442927,-500.0,0.00019178,2]
[330297013,1719239442937,-500.0,0.00019178,2]
[330297015,1719239442946,-500.0,0.00019178,2]
[330297017,1719239442956,-500.0,0.00019178,2]
[330297019,1719239442965,-500.0,0.00019178,2]
[330297021,1719239442974,-500.0,0.00019178,2]
[330297023,1719239442983,-639.95454774,0.00019178,2]
[330297025,1719239442993,-307.56052576,0.00019178,2]
[330297027,1719239443002,-500.0,0.00019178,2]
[330297029,1719239443012,-500.0,0.00019178,2]
[330297031,1719239443022,-500.0,0.00019178,2]
[330297033,1719239443031,-500.0,0.00019178,2]
[330297035,1719239443040,-276.45584141,0.00019178,2]
[330297037,1719239443050,-221.20158279,0.00019178,2]
[330297039,1719239443059,-500.0,0.00019178,2]
[330297041,1719239443068,-500.0,0.00019178,2]
[330297043,1719239443078,-452.4090684,0.00019178,2]
[330297045,1719239443087,-500.0,0.00019178,2]
[330297046,1719239443096,-500.0,0.00019178,2]
[330297048,1719239443106,-426.76337653,0.00019178,2]
[330297050,1719239443116,-500.0,0.00019178,2]
[330297052,1719239443126,-510.36108397,0.00019178,2]
[330297054,1719239443135,-500.0,0.00019178,2]
[330297056,1719239443145,-500.0,0.00019178,2]
[330297059,1719239443155,-500.0,0.00019178,2]
[330297061,1719239443164,-500.0,0.00019178,2]
[330297062,1719239443174,-500.0,0.00019178,2]
[330297064,1719239443185,-500.0,0.00019178,2]
[330297066,1719239443195,-500.0,0.00019178,2]
[330297068,1719239443205,-500.0,0.00019178,2]
[330297070,1719239443215,-500.0,0.00019178,2]
[330297073,1719239443226,-500.0,0.00019178,2]
[330297075,1719239443235,-354.9142162,0.00019178,2]
[330297077,1719239443245,-500.0,0.00019178,2]
[330297078,1719239443254,-500.0,0.00019178,2]
[330297080,1719239443265,-500.0,0.00019178,2]
[330297083,1719239443274,-500.0,0.00019178,2]
[330297084,1719239443283,-500.0,0.00019178,2]
[330297086,1719239443292,-500.0,0.00019178,2]
[330297088,1719239443302,-500.0,0.00019178,2]
[330297090,1719239443311,-500.0,0.00019178,2]
[330297092,1719239443320,-500.0,0.00019178,2]
[330297094,1719239443330,-500.0,0.00019178,2]
[330297097,1719239443339,-500.0,0.00019178,2]
[330297098,1719239443349,-500.0,0.00019178,2]
[330297100,1719239443360,-180.64945746,0.00019178,2]
[330297103,1719239443369,-228.66950594,0.00019178,2]
[330297105,1719239443378,-500.0,0.00019178,2]
[330297107,1719239443388,-500.0,0.00019178,2]
[330297109,1719239443397,-449.42299135,0.00019178,2]
[330297111,1719239443407,-500.0,0.00019178,2]
[330297113,1719239443416,-500.0,0.00019178,2]
[330297115,1719239443425,-500.0,0.00019178,2]
[330297116,1719239443435,-500.0,0.00019178,2]
[330297119,1719239443444,-500.0,0.00019178,2]
[330297121,1719239443454,-500.0,0.00019178,2]
[330297123,1719239443464,-500.0,0.00019178,2]
[330297125,1719239443474,-500.0,0.00019178,2]
[330297127,1719239443483,-500.0,0.00019178,2]
[330297129,1719239443495,-500.0,0.00019178,2]
[330297132,1719239443505,-500.0,0.00019178,2]
[330297135,1719239443514,-500.0,0.00019178,2]
[330297138,1719239443524,-500.0,0.00019178,2]
[330297141,1719239443533,-500.0,0.00019178,2]
[330297144,1719239443542,-500.0,0.00019178,2]
[330297147,1719239443552,-500.0,0.00019178,2]
[330297150,1719239443561,-500.0,0.00019178,2]
[330297153,1719239443571,-510.99333183,0.00019178,2]
[330297156,1719239443580,-500.0,0.00019178,2]
[330297159,1719239443589,-500.0,0.00019178,2]
[330297162,1719239443598,-500.0,0.00019178,2]
[330297165,1719239443607,-500.0,0.00019178,2]
[330297168,1719239443617,-239.92243212,0.00019178,2]
[330297171,1719239443627,-500.0,0.00019178,2]
[330297174,1719239443636,-500.0,0.00019178,2]
[330297177,1719239443646,-500.0,0.00019178,2]
[330297180,1719239443655,-500.0,0.00019178,2]
[330297183,1719239443664,-500.0,0.00019178,2]
[330297186,1719239443673,-500.0,0.00019178,2]
[330297188,1719239443682,-500.0,0.00019178,2]
[330297190,1719239443691,-500.0,0.00019178,2]
[330297193,1719239443701,-423.07176205,0.00019178,2]
[330297198,1719239443711,-500.0,0.00019178,2]
[330297200,1719239443720,-500.0,0.00019178,2]
[330297202,1719239443729,-500.0,0.00019178,2]
[330297206,1719239443738,-500.0,0.00019178,2]
[330297209,1719239443749,-209.0750973,0.00019178,2]
[330297212,1719239443758,-545.88458654,0.00019178,2]
[330297214,1719239443768,-500.0,0.00019178,2]
[330297218,1719239443778,-364.6974832,0.00019178,2]
[330297220,1719239443787,-500.0,0.00019178,2]
[330297224,1719239443797,-500.0,0.00019178,2]
[330297226,1719239443806,-500.0,0.00019178,2]
[330297230,1719239443816,-196.2685526,0.00019178,2]
[330297287,1719239444050,-303.7314474,0.00019178,2]
[330297289,1719239444060,-500.0,0.00019178,2]
[330297292,1719239444069,-500.0,0.00019178,2]
[330297295,1719239444078,-500.0,0.00019178,2]
[330297298,1719239444087,-502.26,0.00019178,2]
[330297301,1719239444096,-500.0,0.00019178,2]
[330297304,1719239444106,-500.0,0.00019178,2]
[330297306,1719239444115,-500.0,0.00019178,2]
[330297308,1719239444125,-500.0,0.00019178,2]
[330297310,1719239444135,-500.0,0.00019178,2]
[330297312,1719239444145,-500.0,0.00019178,2]
[330297314,1719239444154,-500.0,0.00019178,2]
[330297316,1719239444163,-500.0,0.00019178,2]
[330297318,1719239444172,-500.0,0.00019178,2]
[330297320,1719239444183,-500.0,0.00019178,2]
[330297322,1719239444193,-500.0,0.00019178,2]
[330297324,1719239444204,-339.76027746,0.00019178,2]
[330297326,1719239444214,-500.0,0.00019178,2]
[330297328,1719239444223,-500.0,0.00019178,2]
[330297330,1719239444233,-623.93602052,0.00019178,2]
[330297332,1719239444243,-215.06785265,0.00019178,2]
[330297334,1719239444256,-500.0,0.00019178,2]
[330297335,1719239444265,-500.0,0.00019178,2]
[330297336,1719239444276,-577.68,0.00019178,2]
[330297337,1719239444286,-500.0,0.00019178,2]
[330297339,1719239444295,-500.0,0.00019178,2]
[330297349,1719239444490,-542.34082043,0.00019178,2]
[330297350,1719239444506,-500.0,0.00019178,2]
[330297351,1719239444516,-591.08530132,0.00019178,2]
[330297352,1719239444525,-500.0,0.00019178,2]
[330297353,1719239444534,-564.95493202,0.00019178,2]
[330297354,1719239444544,-509.3643211,0.00019178,2]
[330297355,1719239444553,-500.0,0.00019178,2]
[330297356,1719239444563,-500.0,0.00019178,2]
[330297357,1719239444572,-500.0,0.00019178,2]
[330297358,1719239444581,-500.0,0.00019178,2]
[330297359,1719239444590,-500.0,0.00019178,2]
[330297360,1719239444600,-500.0,0.00019178,2]
[330297361,1719239444609,-500.0,0.00019178,2]
[330297362,1719239444619,-500.0,0.00019178,2]
[330297363,1719239444628,-500.0,0.00019178,2]
[330297364,1719239444637,-500.0,0.00019178,2]
[330297365,1719239444646,-452.64803637,0.00019178,2]
[330297366,1719239444656,-500.0,0.00019178,2]
[330297367,1719239444666,-500.0,0.00019178,2]
[330297368,1719239444676,-500.0,0.00019178,2]
[330297369,1719239444685,-500.0,0.00019178,2]
[330297370,1719239444695,-500.0,0.00019178,2]
[330297371,1719239444704,-500.0,0.00019178,2]
[330297372,1719239444713,-500.0,0.00019178,2]
[330297373,1719239444723,-500.0,0.00019178,2]
[330297374,1719239444733,-500.0,0.00019178,2]
[330297375,1719239444742,-500.0,0.00019178,2]
[330297376,1719239444752,-500.0,0.00019178,2]
[330297377,1719239444761,-500.0,0.00019178,2]
[330297378,1719239444770,-500.0,0.00019178,2]
[330297379,1719239444779,-500.0,0.00019178,2]
[330297380,1719239444789,-162.15,0.00019178,2]
[330297381,1719239444798,-500.0,0.00019178,2]
[330297382,1719239444808,-500.0,0.00019178,2]
[330297383,1719239444817,-500.0,0.00019178,2]
[330297384,1719239444826,-500.0,0.00019178,2]
[330297385,1719239444835,-500.0,0.00019178,2]
[330297386,1719239444844,-500.0,0.00019178,2]
[330297387,1719239444854,-500.0,0.00019178,2]
[330297388,1719239444864,-500.0,0.00019178,2]
[330297389,1719239444873,-500.0,0.00019178,2]
[330297390,1719239444883,-500.0,0.00019178,2]
[330297391,1719239444892,-500.0,0.00019178,2]
[330297392,1719239444901,-500.0,0.00019178,2]
[330297393,1719239444910,-500.0,0.00019178,2]
[330297394,1719239444920,-500.0,0.00019178,2]
[330297395,1719239444930,-500.0,0.00019178,2]
[330297396,1719239444939,-500.0,0.00019178,2]
[330297397,1719239444948,-500.0,0.00019178,2]
[330297398,1719239444958,-500.0,0.00019178,2]
[330297399,1719239444967,-500.0,0.00019178,2]
[330297400,1719239444977,-500.0,0.00019178,2]
[330297401,1719239444987,-500.0,0.00019178,2]
[330297402,1719239444997,-48.58018665,0.00019178,2]
[330297403,1719239445071,-451.41981335,0.00019178,2]
[330297404,1719239445081,-500.0,0.00019178,2]
[330297405,1719239445090,-500.0,0.00019178,2]
[330297406,1719239445100,-578.47,0.00019178,2]
[330297407,1719239445109,-500.0,0.00019178,2]
[330297408,1719239445118,-516.0,0.00019178,2]
[330297409,1719239445127,-500.0,0.00019178,2]
[330297410,1719239445136,-604.21242996,0.00019178,2]
[330297411,1719239445146,-808.59,0.00019178,2]
[330297412,1719239445155,-500.0,0.00019178,2]
[330297413,1719239445164,-500.0,0.00019178,2]
[330297414,1719239445173,-500.0,0.00019178,2]
[330297415,1719239445186,-500.0,0.00019178,2]
[330297416,1719239445196,-500.0,0.00019178,2]
[330297417,1719239445205,-500.0,0.00019178,2]
[330297418,1719239445214,-500.0,0.00019178,2]
[330297419,1719239445224,-500.0,0.00019178,2]
[330297420,1719239445234,-553.31,0.00019178,2]
[330297421,1719239445244,-500.0,0.00019178,2]
[330297422,1719239445254,-500.0,0.00019178,2]
[330297423,1719239445264,-500.0,0.00019178,2]
[330297424,1719239445273,-500.0,0.00019178,2]
[330297425,1719239445282,-500.0,0.00019178,2]
[330297426,1719239445291,-500.0,0.00019178,2]
[330297427,1719239445301,-500.0,0.00019178,2]
[330297428,1719239445310,-500.0,0.00019178,2]
[330297429,1719239445319,-500.0,0.00019178,2]
[330297430,1719239445329,-500.0,0.00019178,2]
[330297431,1719239445338,-500.0,0.00019178,2]
[330297432,1719239445347,-996.16,0.00019178,2]
[330297433,1719239445357,-500.0,0.00019178,2]
[330297434,1719239445367,-259.45,0.00019178,2]
[330297435,1719239445376,-500.0,0.00019178,2]
[330297436,1719239445385,-263.00670276,0.00019178,2]
[330297437,1719239445395,-500.0,0.00019178,2]
[330297438,1719239445404,-500.0,0.00019178,2]
[330297439,1719239445414,-500.0,0.00019178,2]
[330297440,1719239445424,-200.0,0.00019178,2]
[330297441,1719239445434,-500.0,0.00019178,2]
[330297442,1719239445443,-500.0,0.00019178,2]
[330297443,1719239445453,-500.0,0.00019178,2]
[330297444,1719239445462,-500.0,0.00019178,2]
[330297445,1719239445472,-500.0,0.00019178,2]
[330297446,1719239445481,-500.0,0.00019178,2]
[330297447,1719239445494,-500.0,0.00019178,2]
[330297448,1719239445504,-500.0,0.00019178,2]
[330297449,1719239445513,-500.0,0.00019178,2]
[330297450,1719239445523,-504.70378894,0.00019178,2]
[330297451,1719239445532,-500.0,0.00019178,2]
[330297452,1719239445542,-500.0,0.00019178,2]
[330297453,1719239445551,-500.0,0.00019178,2]
[330297454,1719239445560,-181.66777009,0.00019178,2]
[330297455,1719239445569,-500.0,0.00019178,2]
[330297456,1719239445578,-500.0,0.00019178,2]
[330297457,1719239445587,-500.0,0.00019178,2]
[330297458,1719239445596,-500.0,0.00019178,2]
[330297459,1719239445606,-438.38823235,0.00019178,2]
[330297460,1719239445615,-500.0,0.00019178,2]
[330297461,1719239445624,-500.0,0.00019178,2]
[330297462,1719239445634,-1399.22,0.00019178,2]
[330297463,1719239445642,-500.0,0.00019178,2]
[330297464,1719239445652,-770.47,0.00019178,2]
[330297465,1719239445661,-696.79,0.00019178,2]
[330297466,1719239445670,-500.0,0.00019178,2]
[330297467,1719239445679,-500.0,0.00019178,2]
[330297468,1719239445687,-640.17,0.00019178,2]
[330297469,1719239445697,-500.0,0.00019178,2]
[330297470,1719239445706,-500.0,0.00019178,2]
[330297471,1719239445715,-500.0,0.00019178,2]
[330297472,1719239445724,-500.0,0.00019178,2]
[330297473,1719239445733,-500.0,0.00019178,2]
[330297474,1719239445742,-500.0,0.00019178,2]
[330297475,1719239445752,-500.0,0.00019178,2]
[330297476,1719239445762,-500.0,0.00019178,2]
[330297477,1719239445770,-500.0,0.00019178,2]